bitfinex-derivatives/quotes_BTCF0:USTF0_20250527
["timestamp","ask_amount","ask_price","bid_price","bid_amount"]
[1748357174055,1.38097831,109630.0,109620.0,0.00025692]
[1748357174252,1.1839695,109630.0,109620.0,0.00025692]
[1748357174455,1.38097831,109630.0,109620.0,0.00025692]
[1748357174656,1.28975831,109630.0,109620.0,0.00425692]
[1748357175059,1.28975831,109630.0,109620.0,0.00825692]
[1748357175459,1.28975831,109630.0,109620.0,2e-08]
[1748357175657,1.63097831,109630.0,109620.0,2e-08]
[1748357175854,1.4339695,109630.0,109620.0,2e-08]
[1748357176051,1.4339695,109630.0,109600.0,0.002]
[1748357176257,0.5431828,109610.0,109600.0,0.002]
[1748357176567,0.5223828,109610.0,109600.0,0.002]
[1748357176771,0.6978828,109610.0,109600.0,0.002]
[1748357176961,0.89489161,109610.0,109600.0,0.002]
[1748357177353,0.89489161,109610.0,109600.0,0.00212]
[1748357177554,0.6978828,109610.0,109600.0,0.00412]
[1748357178365,0.89489161,109610.0,109600.0,0.00712]
[1748357178665,1.25569161,109610.0,109600.0,0.00812]
[1748357178868,1.3999188,109610.0,109600.0,1e-07]
[1748357179060,1.59692761,109610.0,109600.0,1e-07]
[1748357179258,1.34692761,109610.0,109600.0,0.00012]
[1748357179460,1.34692761,109610.0,109600.0,0.00212]
[1748357180062,1.25569161,109610.0,109600.0,0.00212]
[1748357180258,1.97128761,109610.0,109600.0,1e-07]
[1748357180666,1.97128761,109610.0,109590.0,0.00013692]
[1748357180667,0.1823994,109600.0,109590.0,2e-08]
[1748357180861,1.0627994,109600.0,109590.0,2e-08]
[1748357181061,1.25980821,109600.0,109590.0,0.00012002]
[1748357181470,1.35220821,109600.0,109590.0,0.00012002]
[1748357181673,1.1551994,109600.0,109590.0,0.00012002]
[1748357181970,1.2849194,109600.0,109590.0,0.54533612]
[1748357182167,1.2849194,109600.0,109590.0,0.00212002]
[1748357182168,0.99140821,109600.0,109590.0,0.00212002]
[1748357182366,1.84288821,109600.0,109590.0,0.00212002]
[1748357182564,1.75048821,109600.0,109590.0,0.00300002]
[1748357182759,1.75048821,109600.0,109590.0,0.00312002]
[1748357183565,1.83718821,109600.0,109590.0,0.00100002]
[1748357183764,1.83718821,109600.0,109590.0,0.00200002]
[1748357183765,1.84218821,109600.0,109590.0,0.00200002]
[1748357184066,1.16171617,109600.0,109590.0,0.00200002]
[1748357184271,1.65175617,109600.0,109590.0,0.00212002]
[1748357184463,1.65075617,109600.0,109590.0,0.18482002]
[1748357184771,1.65275617,109600.0,109590.0,0.18482002]
[1748357184970,1.16271617,109600.0,109590.0,0.36723612]
[1748357185173,1.2010794,109600.0,109590.0,0.72803612]
[1748357186169,0.7109994,109600.0,109590.0,0.72803612]
[1748357186563,1.2004794,109600.0,109590.0,0.54562002]
[1748357186763,1.2004794,109600.0,109590.0,0.72803602]
[1748357186764,0.7109994,109600.0,109590.0,0.72803602]
[1748357186972,1.1095394,109600.0,109590.0,0.54562002]
[1748357187170,0.5313994,109600.0,109590.0,0.72803602]
[1748357187376,1.0224794,109600.0,109590.0,0.72803602]
[1748357187574,1.0224794,109600.0,109590.0,0.54562002]
[1748357187761,1.39478821,109600.0,109590.0,0.54562002]
[1748357187965,1.75558821,109600.0,109590.0,0.00212002]
[1748357188174,1.75558821,109600.0,109590.0,0.00200002]
[1748357188375,1.39078821,109600.0,109590.0,0.00100002]
[1748357188572,1.75458821,109600.0,109590.0,0.00112002]
[1748357188770,1.84758821,109600.0,109590.0,0.00112002]
[1748357188977,1.84758821,109600.0,109590.0,2e-08]
[1748357189172,0.1824327,109580.0,109570.0,0.1772]
[1748357189476,1.36688151,109580.0,109570.0,0.0914]
[1748357189666,1.54838151,109580.0,109570.0,0.0914]
[1748357189976,1.54798151,109580.0,109570.0,0.09152]
[1748357190177,1.54798151,109580.0,109570.0,0.54282]
[1748357190469,1.56142764,109580.0,109570.0,0.54282]
[1748357190676,1.56142764,109580.0,109570.0,0.45232]
[1748357190875,1.65442764,109580.0,109570.0,0.00012]
[1748357191173,0.1824493,109570.0,109560.0,0.5427913]
[1748357191380,0.7311493,109570.0,109560.0,0.5427913]
[1748357191679,0.7311493,109570.0,109560.0,0.7252573]
[1748357192574,0.6428493,109570.0,109560.0,0.7252573]
[1748357192981,0.6428493,109570.0,109560.0,0.79453594]
[1748357193577,0.6428493,109570.0,109560.0,0.79653594]
[1748357193772,0.6428493,109570.0,109560.0,0.79753594]
[1748357194677,1.0416093,109570.0,109560.0,0.79753594]
[1748357195074,1.0416093,109570.0,109560.0,0.61506994]
[1748357195276,1.1332093,109570.0,109560.0,0.79753594]
[1748357195784,1.0416093,109570.0,109560.0,0.79753594]
[1748357196580,1.0416093,109570.0,109560.0,0.61506994]
[1748357196775,1.42021811,109570.0,109560.0,0.5457913]
[1748357197178,1.42021811,109570.0,109560.0,0.61515231]
[1748357197179,1.2232093,109570.0,109560.0,0.61515231]
[1748357197381,1.42021811,109570.0,109560.0,0.61515231]
[1748357197681,1.42021811,109570.0,109560.0,0.61527231]
[1748357197884,1.2232093,109570.0,109560.0,0.61527231]
[1748357198285,1.2232093,109570.0,109560.0,0.79773831]
[1748357198484,1.1350093,109570.0,109560.0,0.79773831]
[1748357199077,0.6440493,109570.0,109560.0,0.79773831]
[1748357199279,1.0432093,109570.0,109560.0,0.79773831]
[1748357199484,1.0432093,109570.0,109560.0,0.7283773]
[1748357199686,1.0430893,109570.0,109560.0,0.7283773]
[1748357199884,1.0430893,109570.0,109560.0,0.79779271]
[1748357200294,1.0429293,109570.0,109560.0,0.7283773]
[1748357200990,1.0429293,109570.0,109560.0,0.79782414]
[1748357201177,1.1355293,109570.0,109560.0,0.79782414]
[1748357201377,1.2263293,109570.0,109560.0,0.79782414]
[1748357201581,1.2263293,109570.0,109560.0,0.79770414]
[1748357201792,1.2263293,109570.0,109560.0,0.61535814]
[1748357201988,1.2263293,109570.0,109560.0,0.79770414]
[1748357202494,1.2263293,109570.0,109560.0,0.79782414]
[1748357203282,1.2263293,109570.0,109560.0,0.6469849]
[1748357203689,1.2263293,109570.0,109560.0,0.4645189]
[1748357203883,1.2263293,109570.0,109560.0,0.39507206]
[1748357204188,1.2263293,109570.0,109560.0,0.57753806]
[1748357205791,1.2263293,109570.0,109560.0,0.36392]
[1748357205792,1.42333811,109570.0,109560.0,0.36392]
[1748357206093,1.42333811,109570.0,109560.0,0.3638]
[1748357206891,1.42113811,109570.0,109560.0,0.637166]
[1748357207091,1.42113811,109570.0,109560.0,0.720866]
[1748357207394,0.93285811,109570.0,109560.0,0.720986]
[1748357207694,0.33292712,109580.0,109570.0,0.1824494]
[1748357207695,0.46558713,109580.0,109570.0,0.1824494]
[1748357207881,1.3470152,109580.0,109570.0,0.8450473]
[1748357208280,1.4320152,109580.0,109570.0,0.7131494]
[1748357208489,1.3420152,109580.0,109570.0,0.7993494]
[1748357209397,1.3430152,109580.0,109570.0,0.7993494]
[1748357209893,1.1630152,109580.0,109570.0,0.7993494]
[1748357210092,1.1640152,109580.0,109570.0,0.7993494]
[1748357210880,1.1629752,109580.0,109570.0,0.7993494]
[1748357211485,0.6751752,109580.0,109570.0,0.7993494]
[1748357211696,0.2709,109580.0,109570.0,0.7993494]
[1748357211891,0.8518727,109580.0,109570.0,1.0342829]
[1748357212093,0.9413727,109580.0,109570.0,1.0342829]
[1748357212494,0.9413727,109580.0,109570.0,0.96501839]
[1748357214291,0.9413727,109580.0,109570.0,0.95340413]
[1748357214798,1.0325727,109580.0,109570.0,0.87217944]
[1748357214997,1.1925727,109580.0,109570.0,0.95340059]
[1748357215502,1.0025727,109580.0,109570.0,0.95352059]
[1748357215699,1.1625727,109580.0,109570.0,0.87229944]
[1748357216300,1.1621327,109580.0,109570.0,0.87229944]
[1748357217086,1.1621327,109580.0,109570.0,0.82162357]
[1748357217704,1.35914151,109580.0,109570.0,0.46927417]
[1748357217890,1.35914151,109580.0,109570.0,0.10847417]
[1748357218203,1.44464151,109580.0,109570.0,0.13234243]
[1748357218390,1.44464151,109580.0,109570.0,0.49326547]
[1748357218391,1.50095344,109580.0,109570.0,0.49326547]
[1748357218589,1.44464151,109580.0,109570.0,0.49326547]
[1748357218797,1.53633371,109580.0,109570.0,0.49326547]
[1748357219007,1.53633371,109580.0,109570.0,0.3608]
[1748357219498,1.89713371,109580.0,109570.0,0.00012]
[1748357219702,0.2280862,109560.0,109550.0,0.08126355]
[1748357219996,0.1824828,109550.0,109540.0,0.58583599]
[1748357220198,0.7004828,109550.0,109540.0,0.8560462]
[1748357220589,0.7004828,109550.0,109540.0,0.44503599]
[1748357220901,0.7004828,109550.0,109540.0,0.98833539]
[1748357221100,0.7004828,109550.0,109540.0,0.90707184]
[1748357221291,0.7004828,109550.0,109540.0,0.89777244]
[1748357221495,0.7014828,109550.0,109540.0,1.08427184]
[1748357221886,0.7014828,109550.0,109540.0,1.09817523]
[1748357222092,0.7004828,109550.0,109540.0,1.09517523]
[1748357223203,0.73604845,109550.0,109540.0,1.08127184]
[1748357223405,1.21956845,109550.0,109540.0,1.21272621]
[1748357223605,0.87956845,109550.0,109540.0,1.30452621]
[1748357223798,0.87956845,109550.0,109540.0,1.25433539]
[1748357223999,0.87956845,109550.0,109540.0,1.25533539]
[1748357224602,0.12096565,109550.0,109540.0,1.17407184]
[1748357224902,0.7513228,109550.0,109540.0,1.17407184]
[1748357225098,0.7513228,109550.0,109540.0,1.25533539]
[1748357225299,0.7513228,109550.0,109540.0,1.22424092]
[1748357225492,0.8372228,109550.0,109540.0,1.22436092]
[1748357225694,1.2172228,109550.0,109540.0,1.30552501]
[1748357225899,1.2172228,109550.0,109540.0,1.18815285]
[1748357226105,1.2172228,109550.0,109540.0,1.18803285]
[1748357226408,1.25271481,109550.0,109540.0,1.18815285]
[1748357227210,1.44972362,109550.0,109540.0,0.72669244]
[1748357227400,1.44972362,109550.0,109540.0,0.36589244]
[1748357227401,1.81052362,109550.0,109540.0,0.36589244]
[1748357227598,1.81052362,109550.0,109540.0,0.36577244]
[1748357227794,1.13007481,109550.0,109540.0,0.54839184]
[1748357227993,1.13007481,109550.0,109540.0,1.40131632]
[1748357227994,1.25259481,109550.0,109540.0,1.40131632]
[1748357228508,1.2171028,109550.0,109540.0,1.586714]
[1748357228701,1.2171028,109550.0,109540.0,1.53655593]
[1748357228913,1.2171028,109550.0,109540.0,1.45539184]
[1748357229298,1.2171028,109550.0,109540.0,1.26999184]
[1748357229903,1.41411161,109550.0,109540.0,0.47314396]
[1748357230107,1.41411161,109550.0,109540.0,0.4159177]
[1748357230301,1.41411161,109550.0,109540.0,0.49716695]
[1748357230695,1.41657312,109550.0,109540.0,0.49704695]
[1748357230897,1.41657312,109550.0,109540.0,0.49716222]
[1748357231606,1.41657312,109550.0,109540.0,0.49704222]
[1748357231808,1.41657312,109550.0,109540.0,0.49716222]
[1748357232010,1.77737312,109550.0,109540.0,0.49704222]
[1748357232310,1.77737312,109550.0,109540.0,0.56583284]
[1748357232505,1.77737312,109550.0,109540.0,0.50862425]
[1748357232810,1.21956431,109550.0,109540.0,0.44698248]
[1748357233113,1.21956431,109550.0,109540.0,0.67961769]
[1748357233314,1.21956431,109550.0,109540.0,1.04041769]
[1748357233496,1.21956431,109550.0,109540.0,0.85790649]
[1748357233703,1.21956431,109550.0,109540.0,1.04041769]
[1748357233908,1.21956431,109550.0,109540.0,0.49710649]
[1748357234108,0.74993796,109550.0,109540.0,0.49710649]
[1748357234307,1.23389796,109550.0,109540.0,0.44698248]
[1748357234506,1.23389796,109550.0,109540.0,0.36589244]
[1748357235110,0.74993796,109550.0,109540.0,0.36589244]
[1748357235312,1.23361796,109550.0,109540.0,0.36589244]
[1748357236716,1.43062677,109550.0,109540.0,0.36589244]
[1748357237307,1.79142677,109550.0,109540.0,0.36589244]
[1748357237514,1.23115645,109550.0,109540.0,0.36589244]
[1748357238709,1.26711626,109550.0,109540.0,0.36589244]
[1748357239412,1.26714126,109550.0,109540.0,0.36589244]
[1748357241119,1.19714126,109550.0,109540.0,0.47589244]
[1748357241318,0.88714126,109550.0,109540.0,0.14589244]
[1748357241517,1.22714126,109550.0,109540.0,0.14589244]
[1748357241819,0.72976761,109550.0,109540.0,0.43558393]
[1748357242010,1.21160761,109550.0,109540.0,0.53628963]
[1748357242206,1.21160761,109550.0,109540.0,0.46759893]
[1748357242411,1.21160761,109550.0,109540.0,0.55879893]
[1748357242613,1.21160761,109550.0,109540.0,0.42759244]
[1748357242614,1.21140761,109550.0,109540.0,0.42759244]
[1748357243213,1.40841642,109550.0,109540.0,0.42759244]
[1748357243418,1.40841642,109550.0,109540.0,0.00212]
[1748357243719,0.1825115,109540.0,109530.0,0.45359857]
[1748357243922,0.7085115,109540.0,109530.0,0.50374897]
[1748357244220,0.7085115,109540.0,109530.0,0.32123477]
[1748357244422,0.7085115,109540.0,109530.0,0.32135477]
[1748357244615,0.74453326,109540.0,109530.0,0.32123792]
[1748357244816,0.1825282,109530.0,109520.0,0.0902]
[1748357245011,1.76331877,109530.0,109520.0,0.0902]
[1748357245211,1.56630996,109530.0,109520.0,0.09032]
[1748357245423,1.56630996,109530.0,109520.0,0.2728649]
[1748357245614,1.76331877,109530.0,109520.0,0.2728649]
[1748357245810,1.85386105,109530.0,109520.0,0.2728649]
[1748357246014,1.85486105,109530.0,109520.0,0.35794927]
[1748357246214,1.85486105,109530.0,109520.0,0.40814336]
[1748357246410,1.81879701,109530.0,109520.0,0.40814336]
[1748357246733,1.81879701,109530.0,109520.0,0.41972684]
[1748357246914,1.81879701,109530.0,109520.0,0.32705899]
[1748357246915,1.85491292,109530.0,109520.0,0.32705899]
[1748357247219,1.85591292,109530.0,109520.0,0.42272684]
[1748357247420,1.85591292,109530.0,109520.0,0.33005899]
[1748357247627,1.85591292,109530.0,109520.0,0.42272684]
[1748357247919,1.85591292,109530.0,109520.0,0.33005899]
[1748357248219,1.85591292,109530.0,109520.0,0.41135646]
[1748357248924,1.85591292,109530.0,109520.0,0.33005899]
[1748357249315,1.49511292,109530.0,109520.0,0.51850521]
[1748357249618,1.49511292,109530.0,109520.0,0.41150969]
[1748357249619,1.85591292,109530.0,109520.0,0.41150969]
[1748357249830,1.29810411,109530.0,109520.0,0.42282269]
[1748357250023,1.29810411,109530.0,109520.0,0.42270269]
[1748357250331,1.29810411,109530.0,109520.0,0.42282269]
[1748357250513,1.29810411,109530.0,109520.0,0.64112719]
[1748357250915,0.72664411,109530.0,109520.0,1.1618956]
[1748357251115,0.6012282,109530.0,109520.0,1.1618956]
[1748357251312,1.0794682,109530.0,109520.0,1.1618956]
[1748357251512,0.2045282,109530.0,109520.0,1.1618956]
[1748357251727,0.2045282,109530.0,109520.0,1.2061745]
[1748357251929,0.2045282,109530.0,109520.0,1.1286911]
[1748357252328,0.2045282,109530.0,109520.0,1.04952002]
[1748357252829,0.2045282,109530.0,109520.0,1.04950202]
[1748357253034,0.1845282,109530.0,109520.0,1.34047996]
[1748357253418,0.1845282,109530.0,109520.0,1.22427721]
[1748357253932,0.1845282,109530.0,109520.0,1.02460327]
[1748357254427,0.1845282,109530.0,109520.0,1.1291895]
[1748357254428,0.5645282,109530.0,109520.0,1.1291895]
[1748357255317,0.5645282,109530.0,109520.0,0.8553406]
[1748357255520,0.7561282,109530.0,109520.0,0.60813132]
[1748357255727,0.7561282,109530.0,109520.0,0.96893132]
[1748357256024,0.7561282,109530.0,109520.0,0.96905132]
[1748357256225,0.7561282,109530.0,109520.0,0.96893132]
[1748357256430,0.7561282,109530.0,109520.0,0.96905132]
[1748357256729,0.7561282,109530.0,109520.0,0.96908512]
[1748357258532,1.1169282,109530.0,109520.0,0.05731293]
[1748357258834,1.1169282,109530.0,109520.0,0.13883519]
[1748357258835,1.2077282,109530.0,109520.0,0.13883519]
[1748357259125,1.21021848,109530.0,109520.0,0.13871519]
[1748357259331,1.21021848,109530.0,109520.0,0.13883519]
[1748357260117,1.40674932,109530.0,109520.0,0.13882656]
[1748357260637,1.40674932,109530.0,109520.0,0.00712]
[1748357261132,0.3194663,109520.0,109510.0,1e-08]
[1748357261337,0.1825644,109510.0,109500.0,0.1]
[1748357261537,0.90739524,109510.0,109500.0,0.1]
[1748357261722,0.90739524,109510.0,109500.0,0.10012]
[1748357261923,0.90739524,109510.0,109500.0,0.18141669]
[1748357262124,1.36409524,109510.0,109500.0,0.10012]
[1748357262422,1.36409524,109510.0,109500.0,0.53027333]
[1748357262423,1.2804444,109510.0,109500.0,0.53027333]
[1748357262626,1.2804444,109510.0,109500.0,0.63492243]
[1748357262829,1.1845444,109510.0,109500.0,0.476401]
[1748357263027,1.22282677,109510.0,109500.0,0.476401]
[1748357263240,1.22282677,109510.0,109500.0,0.29382]
[1748357263830,1.22282677,109510.0,109500.0,0.4764013]
[1748357264431,1.22282677,109510.0,109500.0,0.4774013]
[1748357264630,1.22382677,109510.0,109500.0,0.4774013]
[1748357265834,1.22382677,109510.0,109500.0,0.29482]
[1748357266037,1.22382677,109510.0,109500.0,0.4774009]
[1748357266237,0.7118644,109510.0,109500.0,0.8382009]
[1748357266424,0.33032017,109530.0,109500.0,1.27160123]
[1748357266621,0.37898427,109530.0,109520.0,0.1825475]
[1748357266820,0.34261502,109530.0,109520.0,0.82179754]
[1748357267026,0.24831502,109530.0,109520.0,0.88909754]
[1748357267232,0.24831502,109530.0,109520.0,1.14524479]
[1748357267233,0.18266782,109530.0,109520.0,1.14524479]
[1748357267435,0.00013692,109530.0,109520.0,1.2365452]
[1748357267636,0.05636925,109550.0,109540.0,0.1825142]
[1748357267839,0.18,109550.0,109540.0,0.95388817]
[1748357268134,0.18,109550.0,109540.0,1.20358604]
[1748357268333,0.18,109550.0,109540.0,1.25591742]
[1748357268535,0.3624976,109550.0,109540.0,1.25091742]
[1748357268932,0.3654976,109550.0,109540.0,0.52931742]
[1748357269225,0.5254976,109550.0,109540.0,0.92582421]
[1748357269432,0.7105976,109550.0,109540.0,0.92582421]
[1748357269627,0.7105976,109550.0,109540.0,0.92956491]
[1748357269832,0.7105976,109550.0,109540.0,0.92968491]
[1748357270028,0.7125976,109550.0,109540.0,0.93068491]
[1748357270347,0.7125976,109550.0,109540.0,0.94226887]
[1748357270530,0.7125976,109550.0,109540.0,0.77247382]
[1748357270730,0.7125976,109550.0,109540.0,0.77259382]
[1748357270931,0.7125976,109550.0,109540.0,0.23827962]
[1748357271128,0.7125976,109550.0,109540.0,0.42079392]
[1748357271330,1.1893576,109550.0,109540.0,0.42079392]
[1748357271727,1.1893576,109550.0,109540.0,0.04831892]
[1748357271931,1.74668844,109550.0,109540.0,0.04831858]
[1748357272128,1.74668844,109550.0,109540.0,0.04819858]
[1748357272437,1.74668844,109550.0,109540.0,0.04831858]
[1748357272438,1.6411576,109550.0,109540.0,0.04831858]
[1748357272625,1.6406376,109550.0,109540.0,0.04831858]
[1748357273037,1.2798376,109550.0,109540.0,0.04831858]
[1748357273236,1.6406376,109550.0,109540.0,0.04831858]
[1748357273540,1.6406376,109550.0,109540.0,0.04832608]
[1748357273743,1.67884722,109550.0,109540.0,0.04832608]
[1748357274335,0.56570722,109550.0,109540.0,0.5444343]
[1748357274536,0.3057976,109550.0,109540.0,0.7319343]
[1748357275434,0.6457976,109550.0,109540.0,0.7319343]
[1748357275636,0.4715976,109550.0,109540.0,0.7319343]
[1748357275941,0.4015976,109550.0,109540.0,0.7319343]
[1748357276934,0.4015976,109550.0,109540.0,0.77910767]
[1748357277131,0.6615976,109550.0,109540.0,0.77910772]
[1748357277337,0.4715976,109550.0,109540.0,0.77910772]
[1748357277739,0.7215976,109550.0,109540.0,0.68360772]
[1748357277939,0.7215976,109550.0,109540.0,0.6364343]
[1748357278744,0.91812844,109550.0,109540.0,0.001]
[1748357278951,0.1825143,109540.0,109530.0,0.00013692]
[1748357279253,1.5894143,109540.0,109530.0,0.00013692]
[1748357279751,1.5894143,109540.0,109530.0,0.00025692]
[1748357280250,1.5894143,109540.0,109530.0,0.00225692]
[1748357280748,1.5894143,109540.0,109530.0,0.00425692]
[1748357281048,1.5914143,109540.0,109530.0,0.00225692]
[1748357281441,1.5914143,109540.0,109530.0,0.00125692]
[1748357282443,1.5914143,109540.0,109530.0,0.0014697]
[1748357283631,1.6292238,109540.0,109530.0,0.0013497]
[1748357283834,1.6292238,109540.0,109530.0,0.0014697]
[1748357284842,1.6292238,109540.0,109500.0,0.1]
[1748357284843,0.1825643,109510.0,109500.0,0.1]
[1748357285143,0.1825643,109510.0,109500.0,0.31675337]
[1748357285144,0.4925643,109510.0,109500.0,0.31675337]
[1748357285346,0.01,109510.0,109500.0,0.77737337]
[1748357285537,0.01,109510.0,109500.0,1.71932072]
[1748357286343,0.01,109510.0,109500.0,1.91585156]
[1748357286532,0.32382922,109520.0,109510.0,0.1825643]
[1748357286533,0.00013692,109520.0,109510.0,0.1825643]
[1748357286737,0.00013692,109520.0,109510.0,0.83231921]
[1748357286738,0.5225476,109520.0,109510.0,0.83231921]
[1748357287046,0.5225476,109520.0,109510.0,0.87654145]
[1748357287239,0.5225476,109520.0,109510.0,0.96917763]
[1748357287441,0.5225476,109520.0,109510.0,0.87654145]
[1748357287442,0.7102476,109520.0,109510.0,0.87654145]
[1748357287637,0.7102476,109520.0,109510.0,0.97117763]
[1748357287951,0.7102476,109520.0,109510.0,0.97329763]
[1748357287952,0.7112476,109520.0,109510.0,0.97329763]
[1748357288250,0.7112476,109520.0,109510.0,0.97456145]
[1748357289832,0.6190476,109520.0,109510.0,0.97456145]
[1748357290537,0.6190476,109520.0,109510.0,0.92768425]
[1748357290740,0.6190476,109520.0,109510.0,0.97456845]
[1748357290946,0.6190476,109520.0,109510.0,0.92768425]
[1748357291246,0.6190476,109520.0,109510.0,1.12421509]
[1748357291444,0.6190476,109520.0,109510.0,0.9745709]
[1748357292147,0.6190476,109520.0,109510.0,0.92768425]
[1748357294855,0.6190476,109520.0,109510.0,1.05616425]
[1748357295951,0.4365,109520.0,109510.0,1.05616425]
[1748357296458,0.6190476,109520.0,109510.0,1.05616425]
[1748357297360,0.7163476,109520.0,109510.0,1.05616425]
[1748357297544,0.341,109520.0,109510.0,1.14747625]
[1748357297744,0.31457,109520.0,109510.0,1.43924712]
[1748357298452,0.31457,109520.0,109510.0,1.47053712]
[1748357300757,0.31457,109520.0,109510.0,1.52599262]
[1748357301056,0.31457,109520.0,109510.0,1.72252346]
[1748357301450,0.31457,109520.0,109510.0,1.72258567]
[1748357301649,0.35756331,109550.0,109520.0,0.0456369]
[1748357301852,0.3636143,109540.0,109530.0,0.66021527]
[1748357302049,0.7336143,109540.0,109530.0,1.1214057]
[1748357302244,0.7336143,109540.0,109530.0,1.10980061]
[1748357302746,0.7336143,109540.0,109530.0,1.47060061]
[1748357303462,0.4599,109540.0,109530.0,1.66713145]
[1748357303755,0.4629,109540.0,109530.0,1.79561145]
[1748357304349,0.6454143,109540.0,109530.0,1.69119767]
[1748357304557,0.6454143,109540.0,109530.0,1.53500884]
[1748357304558,0.4659,109540.0,109530.0,1.53500884]
[1748357304949,0.4629,109540.0,109530.0,1.53400884]
[1748357305259,0.57121111,109590.0,109570.0,0.0456125]
[1748357305446,0.57121111,109590.0,109570.0,0.72704465]
[1748357305447,0.0962,109580.0,109570.0,0.72704465]
[1748357305755,0.4855,109580.0,109570.0,1.36434692]
[1748357306255,0.3862,109580.0,109570.0,1.46860262]
[1748357306447,0.3862,109580.0,109570.0,1.46960262]
[1748357306768,0.3862,109580.0,109570.0,1.48136579]
[1748357306769,0.29,109580.0,109570.0,1.48136579]
[1748357307058,0.29,109580.0,109570.0,1.5009664]
[1748357307248,0.29,109580.0,109570.0,1.60510743]
[1748357307451,0.29,109580.0,109570.0,1.5009664]
[1748357307657,0.29,109580.0,109570.0,1.3746864]
[1748357307658,0.292,109580.0,109570.0,1.3746864]
[1748357307844,0.4744477,109580.0,109570.0,1.20636072]
[1748357308044,0.5720477,109580.0,109570.0,0.33152315]
[1748357308355,0.4873,109580.0,109570.0,0.80888838]
[1748357308560,0.4873,109580.0,109570.0,0.6695443]
[1748357308862,0.4873,109580.0,109570.0,0.90257167]
[1748357308863,0.3906,109580.0,109570.0,0.90257167]
[1748357309049,0.3906,109580.0,109570.0,0.77641167]
[1748357309361,0.3906,109580.0,109570.0,0.86339565]
[1748357309657,0.5730476,109580.0,109570.0,0.95586111]
[1748357309861,0.6697477,109580.0,109570.0,0.96753005]
[1748357310158,0.4873,109580.0,109570.0,0.86339565]
[1748357310351,0.4873,109580.0,109570.0,0.90257946]
[1748357310662,0.6697477,109580.0,109570.0,0.81015563]
[1748357311459,0.6697477,109580.0,109570.0,0.91521688]
[1748357311460,0.293,109580.0,109570.0,0.91521688]
[1748357311645,0.09545867,109590.0,109580.0,0.1824476]
[1748357311844,0.09424948,109600.0,109590.0,0.37896184]
[1748357312050,0.09424948,109600.0,109590.0,2.20494126]
[1748357312360,0.09436948,109600.0,109590.0,2.19205086]
[1748357312944,0.09390811,109610.0,109600.0,0.1824144]
[1748357313148,0.09253692,109610.0,109600.0,1.15304573]
[1748357313350,0.09265692,109610.0,109600.0,1.24428173]
[1748357313548,0.09265692,109610.0,109600.0,1.49242124]
[1748357313752,0.09265692,109610.0,109600.0,1.49142124]
[1748357313965,0.09265692,109610.0,109600.0,1.49042124]
[1748357314555,0.09365692,109610.0,109600.0,1.49042124]
[1748357315455,0.19315692,109610.0,109600.0,1.49042124]
[1748357315649,0.19315692,109610.0,109600.0,1.39918524]
[1748357315857,0.37555462,109610.0,109600.0,1.02254524]
[1748357316055,0.37555462,109610.0,109600.0,0.7658544]
[1748357316357,0.37555462,109610.0,109600.0,0.6674544]
[1748357316959,0.46535462,109610.0,109600.0,0.6674544]
[1748357318656,0.46535462,109610.0,109600.0,0.7669544]
[1748357319367,0.47535462,109610.0,109600.0,0.6407144]
[1748357319666,0.47535462,109610.0,109600.0,0.7669544]
[1748357320359,0.29295692,109610.0,109600.0,0.7669544]
[1748357320559,0.47535462,109610.0,109600.0,0.7669544]
[1748357321663,0.47535462,109610.0,109600.0,0.6674144]
[1748357322170,0.47535462,109610.0,109590.0,1.01421567]
[1748357322171,0.1824144,109600.0,109590.0,0.68383247]
[1748357322370,0.4662144,109600.0,109590.0,0.81003247]
[1748357322761,0.4662144,109600.0,109590.0,0.68383247]
[1748357322960,0.4662144,109600.0,109590.0,0.81015247]
[1748357323460,0.4662144,109600.0,109590.0,0.8083588]
[1748357323869,0.4662144,109600.0,109590.0,0.6821588]
[1748357324067,0.4662144,109600.0,109590.0,0.8083588]
[1748357324657,0.4662144,109600.0,109590.0,0.36292]
[1748357324854,0.4662144,109600.0,109590.0,0.00312]
[1748357325064,1.2932944,109600.0,109590.0,0.003]
[1748357325266,1.2932944,109600.0,109580.0,0.00013692]
[1748357325571,0.1824477,109580.0,109570.0,0.73798815]
[1748357325867,0.4624477,109580.0,109570.0,0.68315604]
[1748357326056,0.1824643,109570.0,109560.0,0.6345054]
[1748357326257,0.5639643,109570.0,109560.0,0.7607054]
[1748357326870,0.6554643,109570.0,109560.0,0.7607054]
[1748357327062,0.6554643,109570.0,109560.0,0.7608254]
[1748357327263,0.6564643,109570.0,109560.0,0.7658254]
[1748357328168,0.6574643,109570.0,109560.0,0.3188009]
[1748357328355,1.68183514,109570.0,109560.0,0.01012]
[1748357328560,1.77553514,109570.0,109560.0,0.01]
[1748357328756,1.77553514,109570.0,109560.0,0.01012]
[1748357329875,1.77453514,109570.0,109560.0,0.00512]
[1748357330170,1.77453514,109570.0,109560.0,0.188601]
[1748357330374,1.77353514,109570.0,109560.0,0.183601]
[1748357330566,1.77453514,109570.0,109560.0,0.186601]
[1748357330967,1.77453514,109570.0,109560.0,0.00412]
[1748357331875,1.5780043,109570.0,109560.0,0.00412]
[1748357332376,1.5780043,109570.0,109560.0,0.186601]
[1748357333163,1.2880043,109570.0,109560.0,0.186601]
[1748357333677,1.6180043,109570.0,109560.0,0.216601]
[1748357334073,1.6180043,109570.0,109560.0,0.186601]
[1748357334377,1.6180043,109570.0,109560.0,0.476601]
[1748357334573,1.6180043,109570.0,109560.0,0.186601]
[1748357335678,1.6156843,109570.0,109560.0,0.186601]
[1748357336068,1.2548843,109570.0,109560.0,0.186601]
[1748357337474,1.2548843,109570.0,109560.0,0.547401]
[1748357337475,0.7901643,109570.0,109560.0,0.547401]
[1748357337677,0.7901643,109570.0,109560.0,0.637601]
[1748357337873,0.7901643,109570.0,109560.0,0.68514971]
[1748357339079,0.6101643,109570.0,109560.0,0.68514971]
[1748357339282,0.6101643,109570.0,109560.0,0.77454971]
[1748357339671,0.8001643,109570.0,109560.0,0.68514971]
[1748357339870,0.8001643,109570.0,109560.0,0.59494971]
[1748357340374,0.8001643,109570.0,109560.0,0.00412]
[1748357340375,1.1609643,109570.0,109560.0,0.00412]
[1748357340682,1.1609643,109570.0,109560.0,0.004]
[1748357340875,1.1609643,109570.0,109560.0,0.00412]
[1748357341078,1.1609643,109570.0,109560.0,0.004]
[1748357341378,1.1609643,109570.0,109560.0,0.00412]
[1748357341583,0.8001643,109570.0,109560.0,0.547401]
[1748357341781,0.8001643,109570.0,109560.0,0.59492984]
[1748357342084,0.7086643,109570.0,109560.0,0.69322984]
[1748357342471,0.7997643,109570.0,109560.0,0.645701]
[1748357342682,0.001,109570.0,109560.0,0.645701]
[1748357342881,0.001,109570.0,109560.0,1.13732197]
[1748357343081,0.00013692,109580.0,109570.0,0.37899514]
[1748357343287,0.00013692,109580.0,109570.0,1.55174146]
[1748357343475,0.00013692,109580.0,109570.0,1.64300146]